{"text_format":"1","workbook":"xlsx","n_sheets":1,"sheets":["DetectionET"],"not_rendered":{"charts":0,"images":22,"macros":1,"external_links":0,"defined_names":15,"comments":0,"pivot_tables":0},"unopened":[],"bounds":{"document_bytes":16777216,"sheet_cells":100000,"rows_first":2000,"rows_last":500,"rows_between":2000,"halvings":0,"cell_chars":16384,"cell_head_chars":4096},"cells_cut":0,"cells_raw":0,"read":"whole","date_system":"1900"}

{"sheet":"DetectionET","index":0,"n_rows":253,"n_cols":29,"rows_kept":253,"cut":false,"hidden":false,"merged":[[58,12,59,13],[23,15,23,16],[22,15,22,16],[24,15,24,16],[28,15,28,16],[26,15,26,16],[45,0,45,5],[46,7,46,10],[24,1,24,5],[23,1,23,5],[22,1,22,5],[58,1,59,1],[120,16,121,16],[144,13,145,13],[141,13,142,13],[135,13,136,13],[132,13,133,13],[144,16,145,16],[141,16,142,16],[138,16,139,16],[135,16,136,16],[132,16,133,16],[129,16,130,16],[126,16,127,16],[123,16,124,16],[89,16,90,16],[80,16,81,16],[202,11,203,12],[92,16,93,16],[92,17,93,19],[95,16,96,16],[95,17,96,19],[89,17,90,19],[83,17,84,19],[80,17,81,19],[99,14,99,15],[120,12,121,12],[123,12,124,12],[144,12,145,12],[141,12,142,12],[138,12,139,12],[135,12,136,12],[132,12,133,12],[129,12,130,12],[126,12,127,12],[113,12,118,12],[164,13,165,13],[164,14,165,15],[167,12,168,12],[74,17,75,19],[23,7,23,8],[77,17,78,19],[86,17,87,19],[59,16,60,16],[59,17,60,19],[65,16,66,16],[68,16,69,16],[74,16,75,16],[77,16,78,16],[83,16,84,16],[86,16,87,16],[65,17,66,19],[68,17,69,19],[62,17,63,19],[62,16,63,16],[71,17,72,19],[71,16,72,16],[58,14,58,15],[58,8,59,9],[58,6,59,7],[39,7,39,12],[27,12,27,15],[24,12,24,13],[207,1,207,2],[209,1,209,2],[195,0,195,10],[147,14,147,15],[129,13,130,13],[126,13,127,13],[123,13,124,13],[120,13,121,13],[113,14,118,15],[144,14,145,15],[141,14,142,15],[138,14,139,15],[135,14,136,15],[132,14,133,15],[129,14,130,15],[126,14,127,15],[123,14,124,15],[120,14,121,15],[113,13,118,13],[113,1,118,1],[116,6,118,7],[116,8,118,9],[116,10,118,11],[113,6,115,11],[204,1,204,2],[201,1,201,2],[3,0,3,2],[4,0,4,10],[5,0,5,10],[0,3,3,8],[0,0,0,2],[1,0,1,2],[2,0,2,2],[6,0,6,11],[8,0,8,11],[7,0,7,11],[58,2,59,3],[58,4,59,5],[58,10,59,11],[60,3,60,4],[60,9,60,10],[116,2,118,3],[116,4,118,5],[113,2,115,5],[151,1,156,1],[111,1,112,7],[158,2,158,3],[158,4,158,5],[93,3,93,4],[75,9,75,10],[154,2,156,3],[154,4,156,5],[154,6,156,7],[154,8,156,9],[154,10,156,11],[124,8,124,9],[127,8,127,9],[136,8,136,9],[139,8,139,9],[120,2,120,3],[120,4,120,5],[120,6,120,7],[120,8,120,9],[120,10,120,11],[151,2,153,5],[151,6,153,11],[9,0,9,18],[46,0,46,3],[13,2,16,10],[10,0,10,11],[19,0,19,5],[19,7,19,9],[57,17,57,19],[57,2,57,3],[11,0,11,10],[12,0,12,10],[13,0,16,1],[57,12,57,13],[57,14,57,15],[22,7,22,10],[57,4,57,5],[57,6,57,7],[57,8,57,9],[57,10,57,11],[26,1,26,5],[27,1,27,5],[28,1,28,5],[37,1,37,4],[29,1,29,5],[30,1,30,5],[167,13,168,13],[167,14,168,15],[170,12,171,12],[170,13,171,13],[158,14,159,15],[158,6,158,7],[158,8,158,9],[158,10,158,11],[158,12,159,12],[158,13,159,13],[161,12,162,12],[161,13,162,13],[161,14,162,15],[151,12,156,12],[151,13,156,13],[151,14,156,15],[138,13,139,13],[204,21,204,22],[207,21,207,22],[209,21,209,22],[182,12,183,12],[182,13,183,13],[182,14,183,15],[185,14,185,15],[173,12,174,12],[173,13,174,13],[173,14,174,15],[176,12,177,12],[176,13,177,13],[176,14,177,15],[179,12,180,12],[179,13,180,13],[179,14,180,15],[209,11,210,12],[201,21,201,22],[170,14,171,15],[164,12,165,12]]}
[null,null,null,"NUREG 2180  Event Tree Spreadsheet for \nIn-Cabinet Fire Detection. Version 2180.0 "]
[]
[]
[]
[]
[]
["The following calculations estimate the non-suppression probability for using in -cabinet smoke detection."]
["Parameters in YELLOW CELLS are Entered by the User."]
["Parameters in GREEN CELLS are Automatically Selected from the DROP DOWN MENU for the Cable Technology Selected."]
["All subsequent output values are calculated by the spreadsheet and based on values specified in the input parameters.  This spreadsheet is protected and secure to avoid errors due to a wrong entry in a cell(s).  The chapter in the NUREG should "]
["be read before an analysis is made."]
[]
[]
["Project / Inspection Title:"]
[]
[]
[]
[]
[]
["INPUT PARAMETERS"]
[]
[]
[null,"Detection System Unavailability/Unreliability Probability  ",null,null,null,null,"β",null,null,null,null,null,null,null,null,{"$f":"IF(R23=\"Enter Value\",\"\",IF(R23<0,\"WARNING value must be between 0 and 1\",IF(R23>1,\"WARNING value must be between 0 and 1\",\"\")))","v":""},null,1,"β"]
[null,"Fraction of Fires that DO NOT have an Incipient Stage",null,null,null,null,"α",null,null,null,"m2",null,null,null,null,{"$f":"IF(R24=\"Enter Value\",\"\",IF(R24<0,\"WARNING value must be between 0 and 1\",IF(R24>1,\"WARNING value must be between 0 and 1\",\"\")))","v":""},null,1,"α"]
[null,"System In-Effectiveness",null,null,null,null,"τ",null,null,null,null,null,null,null,null,{"$f":"IF(R25=\"Enter Value\",\"\",IF(R25<0,\"WARNING value must be between 0 and 1\",IF(R25>1,\"WARNING value must be between 0 and 1\",\"\")))","v":""},null,1,"τ"]
[]
[null,"Human Error Probability for MCR Operator Response",null,null,null,null,"μ",null,null,null,null,null,null,null,null,{"$f":"IF(R27=\"Enter Value\",\"\",IF(R27<0,\"WARNING value must be between 0 and 1\",IF(R27>1,\"WARNING value must be between 0 and 1\",\"\")))","v":""},null,1E-4,"μ"]
[null,"Human Error Probability for 1st Level Field Response",null,null,null,null,"ξ",null,null,null,null,null,null,null,null,null,{"$f":"IF(R28=\"Enter Value\",\"\",IF(R28<0,\"WARNING\",IF(R28>1,\"WARNING\",\"\")))","v":""},1,"ξ"]
[null,null,null,null,null,null,null,null,null,null,null,null,null,null,null,{"$f":"IF(R29=\"Enter Value\",\"\",IF(R29<0,\"WARNING value must be between 0 and 1\",IF(R29>1,\"WARNING value must be between 0 and 1\",\"\")))","v":""},null,{"$f":"IF(H33=\"\",1,EXP(-H31*L33))","v":1},"π1"]
[null,"Electrical non-suppression rate parameter (λ[Electrical])",null,null,null,null,null,9.8000000000000004E-2,null,null,null,null,null,null,null,null,null,{"$f":"IF(R37<1,1,O148)","v":1},"η1"]
[null,"MCR non-suppression rate parameter (λ[MCR])",null,null,null,null,null,0.32400000000000001,null,null,null,null,null,null,null,null,null,{"$f":"IF(L33<1,1,O168)","v":1},"η2"]
[null,null,null,null,null,null,null,"Enter Time to Target Damage (in Minutes)",null,null,null,null,null,null,null,null,null,{"$f":"IF(I247=\"Yes\",IF(I243=\"Yes\",(R35+R39*(1-R35)),R39),1)","v":1},"η3"]
[null,null,null,null,null,null,null,null,null,null,null,{"$f":"IF(H33<0,0,H33)","v":0}]
[null,null,null,null,null,null,null,"Is there a redundant automatic fire detection system protecting the electrical enclosure?",null,null,null,null,null,null,null,null,null,"Redundant Auto Detection Failure Probability"]
[null,null,null,null,null,null,null,null,null,null,"Select Item",null,null,null,null,null,1,{"$f":"IF(H37=\"\",1,IF(H37<0,1,IF(H37>L33,1,Q35)))","v":1}]
[null,null,null,null,null,null,null,"Enter time to detection for redundant automatic fire detection response (in Minutes)",null,null,null,null,null,null,null,null,null,"Time (Minutes):"]
[null,null,null,null,null,null,null,null,null,{"$f":"IF(H37=\"N/A\",\"\",IF(H37<0,\"WARNING time to detection must be greater than 0 minutes\",IF(H37>L33,\"WARNING time to detection > time to damage\",\"\")))","v":""},null,null,null,null,null,null,null,{"$f":"IF(H37<0,0,IF(H37=\"\",L33,H37))","v":0}]
[null,"Conventional Detection/ Suppression ",null,null,null,null,null,"Is there an automatic fire suppression system protecting target of interest?",null,null,null,null,null,null,null,null,null,"Automatic Suppression Failure Probability"]
[null,null,null,null,null,null,null,null,null,null,null,null,null,null,null,null,null,1]
[null,null,null,null,null,null,null,"Is the automatic suppression system dependant on the redundant automatic detection system protecting the area?"]
[]
[null,null,null,null,null,null,null,"Is there manual fixed supression?",null,null,null,null,null,null,null,null,null,"Manual Fixed Suppression Failure Probability"]
[null,null,null,null,null,null,null,null,null,null,null,null,null,null,null,null,null,1]
[]
[]
["RESULTS"]
[null,null,null,null,null,null,null,"Total Non-Suppression Probability : ",null,null,null,{"$f":"Q100","v":1},null,"Calculate"]
[]
[]
[]
[]
[]
[]
[]
[]
[]
[null,"In-Cabinet"]
[null,"Fire","Detector System Availability, Reliability",null,"Fraction of Fires that have an Incipient Stage",null,"System Effective Detecting Incipient Stage",null,"Successful MCR Response",null,"Successful Field Operator Response (Fire Watch Posted)",null,"Enhanced Suppression",null,"Conventional Detection / Suppression",null,null,"End Point"]
[null,"λi x  SF","1-β",null,"1-α",null,"1-τ",null,"1-μ",null,"1-ξ",null,"1-π1"]
[null,null,null,null,null,null,null,null,null,null,null,null,null,null,null,null,{"$f":"N61*L61*J61*H61*F61*D61","v":0},"Cabinet Damage"]
[null,null,null,{"$f":"1-D94","v":0},null,{"$f":"1-F88","v":0},null,{"$f":"1-H82","v":0},null,{"$f":"1-J76","v":0.99990000000000001},null,{"$f":"1-L70","v":0},null,{"$f":"1-N64","v":0}]
[]
[null,null,null,null,null,null,null,null,null,null,null,null,null,"π1",null,"1-η3",{"$f":"N64*L61*J61*H61*F61*D61*P64","v":0},"Cabinet Damage"]
[null,null,null,null,null,null,null,null,null,null,null,null,null,{"$f":"R29","v":1},null,{"$f":"1-P67","v":0}]
[]
[null,null,null,null,null,null,null,null,null,null,null,null,null,null,null,"η3",{"$f":"L61*N64*P67*J61*H61*F61*D61","v":0},"Fire Damage Outside Cabinet"]
[null,null,null,null,null,null,null,null,null,null,null,null,null,null,null,{"$f":"R32","v":1}]
[]
[null,null,null,null,null,null,null,null,null,null,null,"  ξ",null,null,null,"1-η2",{"$f":"P70*L70*J61*H61*F61*D61","v":0},"Cabinet Damage"]
[null,null,null,null,null,null,null,null,null,null,null,{"$f":"R28","v":1},null,null,null,{"$f":"1-P73","v":0}]
[]
[null,null,null,null,null,null,null,null,null,null,null,null,null,null,null,"η2",{"$f":"L70*J61*H61*F61*D61*P73","v":0},"Fire Damage Outside Cabinet"]
[null,null,null,null,null,null,null,null,null,null,null,null,null,null,null,{"$f":"IF(R31<0,1,IF(R31>1,1,R31))","v":1}]
[]
[null,null,null,null,null,null,null,null,null,"μ",null,null,null,null,null,"1-η1",{"$f":"P76*J76*H61*F61*D61","v":0},"Cabinet Damage"]
[null,null,null,null,null,null,null,null,null,{"$f":"IF(R27<0,1,IF(R27>1,1,R27))","v":1E-4},null,null,null,null,null,{"$f":"1-P79","v":0}]
[]
[null,null,null,null,null,null,null,null,null,null,null,null,null,null,null,"η1",{"$f":"P79*J76*H61*F61*D61","v":0},"Fire Damage Outside Cabinet"]
[null,null,null,null,null,null,null,null,null,null,null,null,null,null,null,{"$f":"IF(R30<0,1,IF(R30>1,1,R30))","v":1}]
[]
[null,null,null,null,null,null,null,"τ",null,null,null,null,null,null,null,"1-η2",{"$f":"P82*H82*F61*D61","v":0},"Cabinet Damage"]
[null,null,null,null,null,null,null,{"$f":"IF(R25<0,1,IF(R25>1,1,R25))","v":1},null,null,null,null,null,null,null,{"$f":"1-P85","v":0}]
[]
[null,null,null,null,null,null,null,null,null,null,null,null,null,null,null,"η2",{"$f":"P85*H82*F61*D61","v":0},"Fire Damage Outside Cabinet"]
[null,null,null,null,null,null,null,null,null,null,null,null,null,null,null,{"$f":"IF(R31<0,1,IF(R31>1,1,R31))","v":1}]
[]
[null,null,null,null,null,"α",null,null,null,null,null,null,null,null,null,"1-η2",{"$f":"P88*F88*D61","v":0},"Cabinet Damage"]
[null,null,null,null,null,{"$f":"IF(R24>1,1,IF(R24<0,1,R24))","v":1},null,null,null,null,null,null,null,null,null,{"$f":"1-P91","v":0}]
[]
[null,null,null,null,null,null,null,null,null,null,null,null,null,null,null,"η2",{"$f":"P91*F88*D61","v":0},"Fire Damage Outside Cabinet"]
[null,null,null,null,null,null,null,null,null,null,null,null,null,null,null,{"$f":"IF(R31<0,1,IF(R31>1,1,R31))","v":1}]
[]
[null,null,null,"β",null,null,null,null,null,null,null,null,null,null,null,"1-η1",{"$f":"P94*D94","v":0},"Cabinet Damage"]
[null,null,null,{"$f":"IF(R23<0,1,IF(R23>1,1,R23))","v":1},null,null,null,null,null,null,null,null,null,null,null,{"$f":"1-P97","v":0}]
[]
[null,null,null,null,null,null,null,null,null,null,null,null,null,null,null,"η1",{"$f":"P97*D94","v":1},"Fire Damage Outside Cabinet"]
[null,null,null,null,null,null,null,null,null,null,null,null,null,null,null,{"$f":"IF(R30<0,1,IF(R30>1,1,R30))","v":1}]
[]
[]
[null,null,null,null,null,null,null,null,null,null,null,null,null,null,"Pr(non-supp)=",null,{"$f":"IF((Q66+Q72+Q78+Q84+Q90+Q96)<0.001,0.001,(Q66+Q72+Q78+Q84+Q90+Q96))","v":1}]
[]
[]
[]
[]
[]
[]
[]
[]
[null,null,null,null,null,null," "]
[]
[]
[null,"Event Tree For η1"]
[]
[null,"Fire","Automatic",null,null,null,"Manual",null,null,null,null,null,"Sequence","End State","Pr (Non-Suppression)",null,null," "]
[]
[]
[null,null,"Detection",null,"Supppression",null,"Detection",null,"Fixed",null,"Fire Brigade"]
[]
[]
[]
[null,"FI","AD",null,"AS",null,"MD",null,"MF",null,"FB",null,"F","OK"]
[null,1,{"$f":"1-C134","v":0},null,{"$f":"1-E125","v":0}]
[]
[null,null,null,null,null,null,null,null,null,null,null,null,"G","OK"]
[null,null,null,null,{"$f":"R39","v":1},null,null,null,{"$f":"1-R43","v":0}]
[]
[null,null,null,null,null,null,null,null,null,null,null,null,"H","OK"]
[null,null,null,null,null,null,null,null,{"$f":"R43","v":1},null,{"$f":"1-K131","v":0}]
[]
[null,null,null,null,null,null,null,null,null,null,null,null,"I","NS",{"$f":"K131*I128*E125*C122","v":0}]
[null,null,null,null,null,null,null,null,null,null,{"$f":"IF(H37>=L33,1,IF((EXP(-H30*(L33-H37)))<0.001,0.001,EXP(-H30*(L33-H37))))","v":1}]
[]
[null,null,null,null,null,null,null,null,null,null,null,null,"J","OK"]
[null,null,{"$f":"IF(I251=\"Yes\",R35,IF(I247=\"Yes\",0,1))","v":1},null,{"$f":"1-E137","v":0}]
[]
[null,null,null,null,null,null,null,null,null,null,null,null,"K","OK"]
[null,null,null,null,{"$f":"IF(I247=\"Yes\", IF(I243=\"Yes\", 1, R39),1)","v":1},null,{"$f":"IF(L33>15, 1, 0)","v":0},null,{"$f":"1-R43","v":0}]
[]
[null,null,null,null,null,null,null,null,null,null,null,null,"L","OK"]
[null,null,null,null,null,null,null,null,{"$f":"R43","v":1},null,{"$f":"1-K143","v":0}]
[]
[null,null,null,null,null,null,null,null,null,null,null,null,"M","NS",{"$f":"K143*I140*G137*E137*C134*B122","v":0}]
[null,null,null,null,null,null,null,null,null,null,{"$f":"IF(R37=\"N/A\",1,IF((L33>(H37+15)),IF((EXP(-H30*(L33-H37-15)))<0.001,0.001,(EXP(-H30*(L33-H37-15)))),1))","v":1}]
[]
[null,null,null,null,null,null,{"$f":"IF(L33>15, 0, 1)","v":1},null,null,null,null,null,"N","NS",{"$f":"G145*E137*C134*B122","v":1}]
[]
[]
[null,null,null,null,null,null,null,null,null,null,null,null,null,"Total",{"$f":"O145+O142+O130","v":1}]
[]
[]
[null,"Event Tree For η2"]
[null,"Fire","Automatic",null,null,null,"Manual",null,null,null,null,null,"Sequence","End State","Pr (Non-Suppression)"]
[]
[]
[null,null,"Detection",null,"Supppression",null,"Detection",null,"Fixed",null,"Fire Brigade"]
[]
[]
[]
[null,"FI","AD",null,"AS",null,"MD",null,"MF",null,"FB",null,"F","OK"]
[null,1,1,null,{"$f":"1-E163","v":0}]
[]
[null,null,null,null,null,null,null,null,null,null,null,null,"G","OK"]
[null,null,null,null,{"$f":"R39","v":1},null,null,null,{"$f":"1-R43","v":0}]
[]
[null,null,null,null,null,null,null,null,null,null,null,null,"H","OK"]
[null,null,null,null,null,null,null,null,{"$f":"R43","v":1},null,{"$f":"1-K169","v":0}]
[]
[null,null,null,null,null,null,null,null,null,null,null,null,"I","NS",{"$f":"K169*I166*E163*C160*B160","v":1}]
[null,null,null,null,null,null,null,null,null,null,{"$f":"IF(EXP(-H30*(L33))<0.001,0.001,EXP(-H30*(L33)))","v":1}]
[]
[null,null,null,null,null,null,null,null,null,null,null,null,"J","OK"]
[null,null,{"$f":"1-C160","v":0},null,{"$f":"1-E175","v":0}]
[]
[null,null,null,null,null,null,null,null,null,null,null,null,"K","OK"]
[null,null,null,null,{"$f":"IF(I247=\"Yes\", IF(I243=\"Yes\", 1, R39),1)","v":1},null,{"$f":"IF(L33>15, 1, 0)","v":0},null,{"$f":"1-R43","v":0}]
[]
[null,null,null,null,null,null,null,null,null,null,null,null,"L","OK"]
[null,null,null,null,null,null,null,null,{"$f":"R43","v":1},null,{"$f":"1-K181","v":0}]
[]
[null,null,null,null,null,null,null,null,null,null,null,null,"M","NS",{"$f":"K181*I178*G175*E175*C172*B160","v":0}]
[null,null,null,null,null,null,null,null,null,null,{"$f":"IF(R37=\"N/A\",1,IF((L33>(H37+15)),IF((EXP(-H30*(L33-H37-15)))<0.001,0.001,(EXP(-H30*(L33-H37-15)))),1))","v":1}]
[]
[null,null,null,null,null,null,{"$f":"IF(L33>15, 0, 1)","v":1},null,null,null,null,null,"N","NS",{"$f":"G183*E175*C172*B160","v":0}]
[]
[]
[null,null,null,null,null,null,null,null,null,null,null,null,null,"Total",{"$f":"O183+O180+O168","v":1}]
[]
[]
[]
[]
[]
[]
[]
[]
[]
["DATA FOR DETECTION SPREADSHEET"]
[]
[]
[null,"TOTAL HUMAN ERROR PROBABILITY FOR FIRST LEVEL FIELD RESPONSE",null,null,null,null,null,null,null,null,null,"ASD VEWFD MEAN SYSTEM IN-EFFECTIVENESS"]
[null,"Cabinet Description",null,"Detection Technology",null,null,null,null,"HEP Value",null,null,"Cabinet Description",null,"Detection Technology",null,null," In-Effectiveness",null,null,null,null,"Cabinet Description",null,"Detection Technology",null,null,null,null,"HEP Value"]
[null,null,"Select Value","ASD VEWFD Cloud Chamber Detectors",null,null,null,null,4.6000000000000001E-4,null,null,null,null,"Select Detector Technology",null,null,1,null,null,null,null,null,"Select Value","ASD VEWFD Cloud Chamber Detectors",null,null,null,null,1.1999999999999999E-3]
[null,"1-3 Cabinets",null,"Ionization Detectors",null,null,null,null,1.72E-2,null,null,null,null,"Ionization Spot (ION)",null,null,0.1,null,"ion",null,null,"1-3 Cabinets",null,"Ionization Detectors",null,null,null,null,0.11]
[null,null,null,"Light Scattering Detectors",null,null,null,null,4.58E-2,null,null,"Natural and Forced Ventilation below 100 Cabinet ACH",null,"Photoelectric Spot (PHOTO)",null,null,0.77,null,"photo",null,null,null,null,"Light Scattering Detectors",null,null,null,null,0.11]
[null,null,null,"ASD VEWFD Cloud Chamber Detectors",null,null,null,null,4.6000000000000001E-4,null,null,null,null,"VEWFD Sensitive Spot (SS)",null,null,0.26,null,"lsd",null,null,null,null,"ASD VEWFD Cloud Chamber Detectors",null,null,null,null,0.12]
[null,"4-8 Cabinets",null,"Ionization Detectors",null,null,null,null,1.72E-2,null,null,null,null,"ASD VEWFD Cloud Chamber (CC)",null,null,2.7000000000000001E-3,null,"cc",null,null,"4-8 Cabinets",null,"Ionization Detectors",null,null,null,null,0.13]
[null,null,null,"Light Scattering Detectors",null,null,null,null,4.58E-2,null,null,null,null,"ASD VEWFD Light Scattering 1 (LS1)",null,null,0.53,null,"lsd",null,null,null,null,"Light Scattering Detectors",null,null,null,null,0.14000000000000001]
[null,null,null,"ASD VEWFD Cloud Chamber Detectors",null,null,null,null,4.6000000000000001E-4,null,null,null,null,"ASD VEWFD Light Scattering 2 (LS2)",null,null,0.19,null,"lsd",null,null,null,null,"ASD VEWFD Cloud Chamber Detectors",null,null,null,null,0.3]
[null,"9-12 Cabinets",null,"Ionization Detectors",null,null,null,null,1.72E-2,null,null,null,null,"Select Detector Technology",null,null,1,null,null,null,null,"9-12 Cabinets",null,"Ionization Detectors",null,null,null,null,0.41]
[null,null,null,"Light Scattering Detectors",null,null,null,null,4.58E-2,null,null,null,null,"Ionization Spot (ION)",null,null,0.79,null,"ion",null,null,null,null,"Light Scattering Detectors",null,null,null,null,0.48]
[null,"Addressable",null,"Ion Detector",null,null,null,null,1.72E-2,null,null,"Forced above 100 Cabinet ACH",null,"Photoelectric Spot (PHOTO)",null,null,"Enter Value",null,"null",null,null,"Single-Cabinet",null,"Ion Detector",null,null,null,null,1.2999999999999999E-3]
[null,null,null,null,null,null,null,null,null,null,null,null,null,"VEWFD Sensitive Spot (SS)",null,null,"Enter Value",null,"nope"]
[null,null,null,null,null,null,null,null,null,null,null,null,null,"ASD VEWFD Cloud Chamber (CC)",null,null,1.9E-2,null,"cc"]
[null,null,null,null,null,null,null,null,null,null,null,null,null,"ASD VEWFD Light Scattering 1 (LS1)",null,null,"Enter Value",null,"nope"]
[null,null,null,null,null,null,null,null,null,null,null,null,null,"ASD VEWFD Light Scattering 2 (LS2)",null,null,0.37,null,"lsd"]
[]
[]
[]
[]
[]
[]
[]
["Fraction of fires that have an incipient phase",null,null,null,null,null,"Enhanced Suppression",null,null,null,null,"In-Effectiveness Ticker"]
["Select Cabinet Type",1,null,null,null,null,"Select Cabinet Type","Select Cabinet Type",null,null,null,"Select Cabinet Ventilation Configuration","Select Ventilation System",1]
["Low Voltage Control Cabinet",0.28000000000000003,null,null,null,null,"Multi-Control Cabinet",1,1,null,null,"Natural or Forced Ventilation up to 100 Cabinet ACH","Natural","Select Ventilation System"]
["Power Cabinet",0.5,null,null,null,null,"Single Low Voltage Control Cabinet",1,null,null,null,"Forced Ventilation above 100 Cabinet ACH","Forced"]
["User Defined","Enter Value",null,null,null,null,"Multi-Power Cabinet",1,null,null,null,"User Defined",0]
[null,null,null,null,null,null,"User Defined",0]
[]
[null,null,null,null,null,null,"Conventional Suppression",null,null,null,null,"Automatic Detection ComboBox"]
["Detector System Availability, Reliability",null,null,null,null,null,"Select Cabinet Type","Select Cabinet Type",1,null,null,"Select Detector Type",1,1]
["Select Detector Type",1,null,null,null,null,"Multi-Control Cabinet",1,1,null,null,"VEWFD ASD",3.5999999999999999E-3]
["ASD Very Early Warning",3.5999999999999999E-3,null,null,null,null,"Single Low Voltage Control Cabinet",1,null,null,null,"Other conventional spot-type detector system",0.05]
["Spot",0.05,null,null,null,null,"Multi-Power Cabinet",1,null,null,null,"User Defined","Enter Value"]
["User Defined","Enter Value",null,null,null,null,"User Defined",0]
["Automatic Detection Failure Probability",0.05,"????",null,null,null,null,null,null,null,null,"Automatic Suppression ComboBox"]
[null,null,null,null,null,null,null,null,null,null,null,"Select Suppression System",1]
["Default MCR HEP",1E-4,null,null,null,null,"Pi 1",null,null,null,null,"Carbon Dioxide",0.04]
["User Defined","Enter Value",null,null,null,null,"Default Enhanced Non-Suppression [1.0]",1,null,null,null,"Halon Systems",0.05]
[null,null,null,null,null,null,"User Defined","Enter Value",null,null,null,"Wet Pipe Sprinkler Systems",0.02]
[null,null,null,null,null,null,null,null,null,null,null,"Deluge or Preaction Sprinkler Systems",0.05]
[null,null,null,null,null,null,null,null,null,null,null,"User Defined","Enter Value"]
["Select Number Of Cabinets",22]
["Default Field Operator HEP [up to 10 Cabinets per zone]",13,13,null,null,null,"CheckBox7 Ticker:",null,null,"AS dep on AD",null,"red auto det ComboBox 3"]
["User Defined",0,null,null,null,null,"1=True",null,null,null,null,"Select Redundant Detection",1]
["9-12 Cabinets",10,null,null,null,null,"0=False",null,null,null,null,"Smoke/Heat",0.05]
["Addressable",1,null,null,null,null,null,null,null,null,null,"User Defined","Enter Value"]
["User Defined",0,null,null,null,null,"CheckBox3 Ticker:",null,null,"AS?"]
[null,null,null,null,null,null,"1=True"]
[null,null,null,null,null,null,"0=False"]
[]
[null,null,null,null,null,null,"CheckBox1 Ticker:",null,null,"RE Det"]
[null,null,null,null,null,null,"1=True"]
[null,null,null,null,null,null,"0=False"]